Cogmind - Beta 11.1 @@@ ROGUE MODE // 2022.06.19 @ 15:22:13 Player: s0lid Result: Destroyed by D-53 Grenadier with Mini Grenade Launcher Performance ------------- Evolutions (0) 0 Regions Visited (4) 800 Robots Destroyed (27) 135 Value Destroyed (529) 529 Prototype IDs (0) 0 Alien Tech Used (0) 0 Bonus (26) 26 TOTAL SCORE: 1490 Bonus ------- High Alert Combat Kills 8 Follower Combat Kills 60 Friendly Fire -42 Cogmind --------- Core Integrity 0/250 Matter 193/300 Energy 66/125 System Corruption 1% Temperature Cool (2) Movement Walking (120) Location -9/Mines Parts ------- > --- POWER (1) -------- Light Ion Engine > --- PROPULSION (2) --- Aluminum Leg Aluminum Leg > --- UTILITY (2) ------ Targeting Computer > --- WEAPON (2) ------- (None) > --- INVENTORY (5) ---- Improved Heat Sink High-capacity Matter Pod (200) Targeting Computer Light Cannon Grenade Launcher Peak State ------------ > --- POWER ------------ Light Nuclear Core > --- PROPULSION ------- Aluminum Leg Wheel > --- UTILITY ---------- Improved Heat Sink Large Storage Unit > --- WEAPON ----------- Light Cannon Rocket Launcher > --- INVENTORY -------- Light Ion Engine Aluminum Leg Small Storage Unit Medium Storage Unit High-capacity Matter Pod Visual Processing Unit Signal Interpreter Transport Network Coupler Targeting Computer Targeting Computer Targeting Computer Light Cannon Grenade Launcher [Rating: 13] Favorites ----------- Power Ion Engine Engine Ion Engine Power Core Light Nuclear Core Propulsion Wheel Leg Aluminum Leg Wheel Wheel Utility Large Storage Unit Device Sensor Array Storage Large Storage Unit Processor Targeting Computer Protection Light Armor Plating Weapon Light Cannon Energy Gun Small Laser Ballistic Gun Assault Rifle Ballistic Cannon Light Cannon Launcher Rocket Launcher Special Weapon Enhanced Flamer Build | -11 -10 -10 -10 -9 ------- Run | Scr Mat Min Exi Min Slots Evolved . | . . . . . Power . | . . . . . Propulsion . | . . . . . Utility . | . . . . . Weapon . | . . . . . Parts Attached 24 | 4 7 7 . 6 Power 3 | 1 . . . 2 Engine 2 | 1 . . . 1 Core 1 | . . . . 1 Reactor . | . . . . . Propulsion 8 | 2 2 2 . 2 Treads . | . . . . . Leg 2 | . . . . 2 Wheel 6 | 2 2 2 . . Hover . | . . . . . Flight . | . . . . . Utility 6 | 1 3 . . 2 Device 2 | . 1 . . 1 Storage 2 | 1 1 . . . Processor 1 | . . . . 1 Hackware . | . . . . . Protection 1 | . 1 . . . Artifact . | . . . . . Weapon 7 | . 2 5 . . Energy Gun 1 | . 1 . . . Energy Cannon . | . . . . . Ballistic Gun 2 | . 1 1 . . Ballistic Cannon 2 | . . 2 . . Launcher 1 | . . 1 . . Special Weapon 1 | . . 1 . . Impact Weapon . | . . . . . Slashing Weapon . | . . . . . Piercing Weapon . | . . . . . Special Melee Weapon . | . . . . . Unidentified Prototypes . | . . . . . Parts Lost 9 | . . 4 . 5 Power 1 | . . . . 1 Propulsion 4 | . . 2 . 2 Utility 1 | . . . . 1 Weapon 3 | . . 2 . 1 Highest Loss Streak 4 | . . 2 . 4 To Critical Strikes . | . . . . . Average Slot Usage (%) 98 | . 95 98 100 95 Engine 12 | . 14 14 14 5 Core 1 | . . . . 7 Wheel 27 | . 28 27 28 26 Device 11 | . 5 14 14 11 Storage 14 | . 14 14 14 14 Protection 1 | . 7 . . . Energy Gun 3 | . 12 3 . . Ballistic Gun 3 | . 12 1 . . Ballistic Cannon 12 | . . 17 14 14 Launcher 6 | . . . 14 13 Special Weapon 1 | . . 4 . . Naked Turns . | . . . . . Heaviest Build 33 | 10 31 33 33 33 Greatest Support 20 | 20 20 20 20 20 Greatest Overweight (x) 3 | 1 1 3 1 3 Average Overweight (x) . | . . 1 1 1 Largest Inventory Capacity 15 | 8 15 15 15 15 Average Capacity 14 | 6 14 15 15 14 Most Carried 15 | 8 15 15 15 15 Average Carried 14 | 4 12 14 15 14 Final Capacity 15 | 8 15 15 15 5 Final Carried 15 | 8 15 15 15 5 Class Distribution -------------------- 100% | Mutant Dominant Class ---------------- Mutant | -10/Materials Mutant | -10/Mines Mutant | -10/Exiles Mutant | -9/Mines Resources | -11 -10 -10 -10 -9 ----------- Run | Scr Mat Min Exi Min Matter Collected 867 | 209 223 270 73 92 Remotely . | . . . . . Salvage Created 581 | . 213 246 . 122 Parts 54 | . 18 20 . 16 Haulers Intercepted 1 | . 1 . . . Recyclers Shooed . | . . . . . Parts Field Recycled . | . . . . . Retrieved Matter . | . . . . . Parts Self-Destructed . | . . . . . Prevented . | . . . . . Kills | -11 -10 -10 -10 -9 ------- Run | Scr Mat Min Exi Min Combat Hostiles Destroyed 31 | . 5 10 . 16 Guns 9 | . 5 4 . . Cannons 6 | . . 6 . . AOE 16 | . . . . 16 Classes Destroyed 7 | . 4 1 . 2 Hauler 1 | . 1 . . . Watcher 2 | . 2 . . . Swarmer 15 | . 3 5 . 7 Grunt 7 | . 2 4 . 1 Brawler 1 | . . . . 1 Sentry 1 | . . 1 . . Assembled 7 | . . . . 7 Best Kill Streak 7 | . 2 3 . 7 Combat Bots Only 7 | . 2 3 . 7 Max Kills in Single Turn 4 | . 1 2 . 4 Gunslinging . | . . . . . Exploded 4 | . . . . 4 Melee . | . . . . . Uniques/NPCs Destroyed . | . . . . . Combat | -11 -10 -10 -10 -9 -------- Run | Scr Mat Min Exi Min Damage Taken 1177 | . 181 428 . 568 Core 251 | . 45 62 . 144 Absorbed by Shields . | . . . . . Core Remaining (%) 100 | 100 . . . . Volleys Fired 74 | . 27 33 . 14 Largest 2 | . 2 2 . 2 Hottest 115 | . 60 115 . 68 Shots Fired 121 | . 53 52 . 16 Gun 77 | . 53 24 . . Cannon 27 | . . 23 . 4 Launcher 12 | . . . . 12 Special 5 | . . 5 . . Kinetic 68 | . 27 37 . 4 Thermal 41 | . 26 15 . . Explosive 12 | . . . . 12 Electromagnetic . | . . . . . Robot Hit Streak 8 | . 4 8 . 3 Robot Miss Streak 5 | . 5 3 . 3 Penetration Max . | . . . . . Secondary Targets 1 | . 1 . . . Max Gunslinging Chain 1 | . 1 . . . Shots Hit Robots 69 | . 26 36 . 7 Core Hits 51 | . 10 17 . 24 Critical Kills . | . . . . . Critical Parts Destroyed 1 | . 1 . . . Critical Strikes 3 | . 1 2 . . Destroy 1 | . 1 . . . Blast 2 | . . 2 . . Melee Attacks . | . . . . . Impact . | . . . . . Slashing . | . . . . . Piercing . | . . . . . Sneak Attacks . | . . . . . Combat Hostiles . | . . . . . Follow-up Attacks . | . . . . . Damage Inflicted 1694 | . 318 502 . 874 Guns 508 | . 318 190 . . Cannons 304 | . . 269 . 35 Explosions 839 | . . . . 839 Melee . | . . . . . Ramming . | . . . . . Kinetic 593 | . 161 397 . 35 Thermal 262 | . 157 105 . . Explosive 839 | . . . . 839 Electromagnetic . | . . . . . Impact . | . . . . . Slashing . | . . . . . Piercing . | . . . . . Highest Corruption 1 | . 1 1 1 1 Average Corruption 1 | . 1 1 1 1 Corruption Purged . | . . . . . Corruption Blocked . | . . . . . Effects 11 | . . 1 7 3 Message Errors 3 | . . . 1 2 Matter Fused 2 | . . . 2 . Energy Discharges 5 | . . 1 4 . Alerts 1 | . . . . 1 Overload Shots . | . . . . . Overflow Damage 41 | . . . . 41 Projectiles . | . . . . . Explosions 41 | . . . . 41 Melee . | . . . . . Knockbacks 2 | . . 2 . . Impact . | . . . . . Kinetic 1 | . . 1 . . Secondary 1 | . . 1 . . Self-Inflicted Damage 99 | . . . . 99 Shots 3 | . . . . 3 Rammed . | . . . . . Targets Rammed . | . . . . . Kicked . | . . . . . Crushed . | . . . . . Highest Temperature 122 | . 39 122 . 30 Average Temperature 32 | . 12 46 . 14 Received Heat Transfer 258 | . 60 174 . 24 Siege Activations . | . . . . . Robots Corrupted . | . . . . . Combat Hostiles . | . . . . . Parts Fried . | . . . . . Impact Corruptions . | . . . . . Robots Melted . | . . . . . Combat Hostiles . | . . . . . Parts Melted . | . . . . . Heat Transferred 820 | . 350 470 . . Parts Sabotaged . | . . . . . Parts Stolen . | . . . . . Parts Stripped . | . . . . . Power Chain Reactions . | . . . . . Missiles Intercepted . | . . . . . Alert | -11 -10 -10 -10 -9 ------- Run | Scr Mat Min Exi Min Peak Influence 487 | . 209 177 . 487 Initial 17 | . . 17 . . Average 115 | . 97 78 . 260 Maximum Alert Level 2 | . 1 . . 2 Low Security (%) 84 | 100 92 100 . 31 Level 1 12 | . 7 . . 53 Level 2 2 | . . . . 15 Level 3 . | . . . . . Level 4 . | . . . . . Level 5 . | . . . . . High Security . | . . . . . Max Security . | . . . . . Squads Dispatched 2 | . 2 . . . Investigation . | . . . . . Extermination . | . . . . . Reinforcement 2 | . 2 . . . Assault . | . . . . . Garrison . | . . . . . Intercept . | . . . . . Searches Triggered . | . . . . . Construction Impeded . | . . . . . Haulers Reinforced . | . . . . . Active Scanning Responses . | . . . . . Cargo Convoy Interrupts . | . . . . . Stealth | -11 -10 -10 -10 -9 --------- Run | Scr Mat Min Exi Min Distress Signals . | . . . . . Communications Jammed . | . . . . . Distress Signals . | . . . . . Times Spotted 43 | . 11 12 . 20 Peak Tracking Total 6 | . 3 3 . 6 Tactical Retreats 1 | . 1 . . . Traps | -11 -10 -10 -10 -9 ------- Run | Scr Mat Min Exi Min Traps Triggered . | . . . . . Indirectly . | . . . . . Trap Hack Attempts . | . . . . . Triggered . | . . . . . Disarmed . | . . . . . Reprogrammed . | . . . . . Reused . | . . . . . Traps Extracted . | . . . . . Installed . | . . . . . Triggered . | . . . . . Machines | -11 -10 -10 -10 -9 ---------- Run | Scr Mat Min Exi Min Machines Disabled . | . . . . . Max in Single Turn . | . . . . . Machines Sabotaged . | . . . . . Garrisons Compromised . | . . . . . Overloaded Fab Kills . | . . . . . Hacking | -11 -10 -10 -10 -9 --------- Run | Scr Mat Min Exi Min Machines Accessed 6 | . 4 . 2 . Terminals 4 | . 4 . . . Fabricators . | . . . . . Repair Stations . | . . . . . Recycling Units . | . . . . . Scanalyzers . | . . . . . Garrison Access . | . . . . . Total Hacks 15 | . 10 . 5 . Successful 12 | . 7 . 5 . Failed 3 | . 3 . . . Catastrophic . | . . . . . Database Lockouts . | . . . . . Manual 1 | . 1 . . . Terminals 10 | . 10 . . . Fabricators . | . . . . . Repair Stations . | . . . . . Recycling Units . | . . . . . Scanalyzers . | . . . . . Garrison Access . | . . . . . Terminal Hacks 11 | . 6 . 5 . Record 5 | . . . 5 . Robot Analysis 1 | . 1 . . . Emergency Access Points 1 | . 1 . . . Alert Level 2 | . 2 . . . Unreport Threat 1 | . 1 . . . Locate Traps 1 | . 1 . . . Fabricator Hacks . | . . . . . Repair Station Hacks . | . . . . . Recycling Unit Hacks . | . . . . . Scanalyzer . | . . . . . Garrison Access Hacks . | . . . . . Unauthorized Hacks 1 | . 1 . . . Terminals 1 | . 1 . . . Assimilate 1 | . 1 . . . Fabricators . | . . . . . Repair Stations . | . . . . . Recycling Units . | . . . . . Scanalyzers . | . . . . . Garrison Access . | . . . . . Data Cores Recovered . | . . . . . Used . | . . . . . Hacking Detections 4 | . 4 . . . Full Trace Events 1 | . 1 . . . Feedback Events 1 | . 1 . . . Corruption 1 | . 1 . . . Feedback Blocked . | . . . . . Robot Schematics Acquired . | . . . . . Robots Built . | . . . . . Authchips . | . . . . . Time . | . . . . . Total Robot Build Rating . | . . . . . Part Schematics Acquired . | . . . . . Parts Built . | . . . . . Authchips . | . . . . . Time . | . . . . . Total Part Build Rating . | . . . . . Parts Repaired . | . . . . . Time . | . . . . . Parts Recycled . | . . . . . Recycled Matter . | . . . . . Retrieved Matter . | . . . . . Retrieved Components . | . . . . . Parts Scanalyzed . | . . . . . Part Schematics Acquired . | . . . . . Parts Damaged . | . . . . . Bothacking | -11 -10 -10 -10 -9 ------------ Run | Scr Mat Min Exi Min Used RIF Installer . | . . . . . Robots Hacked . | . . . . . Non-combat . | . . . . . Combat . | . . . . . Robot Hacks Applied . | . . . . . Relay Couplers Released . | . . . . . Fabnet Peak Effective % . | . . . . . Robots Rewired . | . . . . . Allies Hacked . | . . . . . Hacks Repelled . | . . . . . Allies | -11 -10 -10 -10 -9 -------- Run | Scr Mat Min Exi Min Total Allies 5 | . . . . 5 Largest Group 5 | . . . . 5 Highest-Rated Group 86 | . . . . 86 Highest-Rated Ally 31 | . . . . 31 Total Orders . | . . . . . Ally Attacks 19 | . . . . 19 Total Damage 200 | . . . . 200 Kills 3 | . . . . 3 Allies Corrupted . | . . . . . Allies Melted . | . . . . . Intel | -11 -10 -10 -10 -9 ------- Run | Scr Mat Min Exi Min Robot Analysis Total 1 | . 1 . . . Derelict Logs Recovered 5 | . . 3 . 2 Drone Launches . | . . . . . Drone Recoveries . | . . . . . Exploration | -11 -10 -10 -10 -9 ------------- Run | Scr Mat Min Exi Min Turns Passed 2464 | 63 506 846 718 331 Spaces Moved 2130 | 51 376 674 756 273 Core 6 | 6 . . . . Treads . | . . . . . Legs 3 | . . . . 3 Wheels 2121 | 45 376 674 756 270 Hover . | . . . . . Flight . | . . . . . Fastest Speed 50 | 50 80 95 95 95 Average Speed 94 | 77 92 95 95 96 Slowest Speed 125 | 100 95 125 95 125 Overloaded Moves . | . . . . . Propulsion Burnouts . | . . . . . Robots Hopped . | . . . . . Cave-ins Triggered . | . . . . . Exploration Rate (%) 62 | 3 55 99 92 63 Regions Visited 4 Branch Regions 3 Pre-discovered Areas 3 | . . 2 . 1 Known Exits Taken 1 | . . 1 . . Unknown Exits Taken 3 | 1 1 . 1 . Scrap Searched 1 | . . 1 . . Spaces Dug . | . . . . . Terrain Destroyed 111 | . . . . 111 Melee . | . . . . . Projectile . | . . . . . AOE 111 | . . . . 111 Terrain Rammed . | . . . . . Walls Destroyed . | . . . . . Machines Disabled . | . . . . . Actions | -11 -10 -10 -10 -9 --------- Run | Scr Mat Min Exi Min Total 2460 | 72 485 821 755 327 Wait 190 | 10 55 95 . 30 Move 2126 | 50 375 673 755 273 Hop . | . . . . . Pick Up 29 | 8 13 8 . . Fast Attach 8 | 4 2 1 . 1 Attach 11 | . 2 4 . 5 Detach 2 | . . . . 2 Swap 5 | . 3 2 . . Drop 15 | . 8 5 . 2 Fire 74 | . 27 33 . 14 Melee . | . . . . . Ram . | . . . . . Kick . | . . . . . Crush . | . . . . . Escape Stasis . | . . . . . Rewire . | . . . . . Trap . | . . . . . Miscellaneous . | . . . . . Route ------- -11/Scrapyard -10/Materials (discovered 2 exits: [*Min x2]) -10/Mines (discovered 3 exits: [*Mat x2] / *Exi) -10/Exiles (discovered 2 exits: [*Min x2]) -9/Mines (discovered 2 exits: [*Mat x2]) History --------- Turn | Location | Event 2 | -11/Scrapyard | Met Revision 17 18 | -11/Scrapyard | Discovered new exit (range 16) 64 | -11/Scrapyard | Entered Materials 70 | -10/Materials | Discovered new exit (range 15) 193 | -10/Materials | Discovered new exit (range 12) 302 | -10/Materials | Build established: Mutant 570 | -10/Materials | Entered Mines 573 | -10/Mines | Discovered new exit (range 15) 639 | -10/Mines | Identified exit to Exiles 681 | -10/Mines | Learned Materials terminal intel 756 | -10/Mines | Learned location of Storage (-7) 791 | -10/Mines | A weapon hastily lodged in a ceiling crevice suddenly fell to the ground 1153 | -10/Mines | Learned location of Zion (-7) 1157 | -10/Mines | Found a hidden stash of uninstalled traps 1289 | -10/Mines | Discovered new exit (range 6) 1379 | -10/Mines | Received a Rocket Launcher from a helpful Derelict 1400 | -10/Mines | Deemed a non-threat by the Exiles lab entrance 1416 | -10/Mines | Entered Exiles 1435 | -10/Exiles | Discovered new exit (range 15) 1458 | -10/Exiles | Met 8R-AWN 1474 | -10/Exiles | Met EX-HEX 1519 | -10/Exiles | Met EX-DEC 1559 | -10/Exiles | Visited The Gauntlet 1805 | -10/Exiles | Discovered new exit (range 12) 1860 | -10/Exiles | Met EX-BIN 2134 | -10/Exiles | Entered Mines 2230 | -9/Mines | Assisted by bots powering up and referring to "LRC-V3" 2276 | -9/Mines | Discovered new exit (range 12) 2342 | -9/Mines | Discovered new exit (range 7) 2368 | -9/Mines | Learned Materials trap positions 2403 | -9/Mines | Assembled infested the area 2456 | -9/Mines | Core integrity fell below 50% 2458 | -9/Mines | Destroyed 7 combat bots 2460 | -9/Mines | Core integrity fell below 20% 2465 | -9/Mines | Destroyed by D-53 Grenadier with Mini Grenade Launcher Last Messages --------------- 02431_ QLPWIN ZDJKGX%TRQBA| PFFBNUPZXZ>TWFCO, 02431_ Mercenary 2a suffers critical hit (Destroy). 02432_ as-92743 destroyed. 02432_ as-76930 destroyed. 02435_ 1F-ED0(z) destroyed. 02435_ Trooper 2b destroyed. 02437_ as-13404 destroyed. 02437_ as-66948 destroyed. 02438_ SV-X8Z(g) destroyed. 02440_ Trooper 2a destroyed. 02442_ Mercenary 2a destroyed. 02442_ as-91276 destroyed. 02455_ Wheel destroyed. 02457_ The unstable cave ceiling collapses. 02457_ Lgt. Nuclear Core destroyed. 02457_ Rocket Launcher destroyed. 02458_ :PM212LA|J%AU GBKAJMQ3 02460_ The unstable cave ceiling collapses. 02462_ Dropped Lrg. Storage Unit. 02463_ The unstable cave ceiling collapses. Map ----- +----------------------------------------------------+ | | | | | | | | | | | | | | | | | | | | | | | | | | | | | | | | | ????????????????????????????????? | | ????????????????????????????????? | | ????#########???????????????????? | | ???## #???????????????????? | | ??## ###?????????????????? | | ?## #######???????????? | | ?# !d d #??## ##???? | | ??# ]! ??? | | ??# !! # ??? | | ??# @ ## ??? | | ??# ## % ??? | | ??# ### ??? | | ??### ### % ??? | | ????### ## ???? | | ?????### # ##???? | | ????## %% ##?????? | | ????# # #??????? | | ????# # #?###??? | | ????## ## ##?? | | ????## k #?? | | ????# * #?? | | ???## * [% #?? | | ???# ! ## #?? | | ???##### #### #?? | | ???????#### #?## ##?? | | ??????????## ##???###??? | | ???????????## ##?????????? | | ????????????## ###??????????? | | ?????????????# ###????????????? | | ?????????????# ##??????????????? | | ?????????????## ##??????????????? | | ?????????????## #??????????????? | | ????????????## ##########?????? | | ????????????# ####### | +----------------------------------------------------+ Best States ------------- Heat Dissipation 39 Energy Generation 14 Energy Capacity 250 Matter Stores 300 Matter Capacity 300 Sight Range 16 Robot Scan Range 14 Terrain Scan Density 10 Armor Coverage 150 Evasion (%) 44 Item Schematics ----------------- None Robot Schematics ------------------ None Fabricated ------------ Nothing Alien Tech Used ----------------- None Achievements -------------- None Challenges ------------ None Game ------ Seed EtherialIonFacilitator Manual? 0 Play Time 00:30:47 Cumulative 126.5 hours Start 2022.06.19 @ 14:48:42 End 2022.06.19 @ 15:22:13 Sessions 1 Manual Loads 0 Difficulty Rogue Special Mode None Game No. 122 Rogue 122 Adventurer 0 Explorer 0 Win Type - Total 0 Types 0/0/0/0/0/0/0/0/0 Lore% 27 Gallery% 54 Achievement% 35 Wizard Run 0 Options --------- ASCII 0 Keyboard 1 Movement Vi Keybinds 0 Fullscreen 2 Font 24/Smallcaps Map View 76x50 Tactical HUD 1 Map Filters NONE Filters NONE Steam 1 RUN: 06f7e2c3-e4f8-41ad-a7cc-82814ab41843